[Event "MČR v bleskovém šachu družstev 2019"]
[Site "Teplice, Czech Republic"]
[Date "2019.09.14"]
[Round "9.15"]
[White "Chmel, Kristian"]
[Black "Marsalek, Zdenek"]
[Result "1-0"]
[TimeControl "3 mim. + 2 s"]
[WhiteFideId "344281"]
[WhiteElo "2097"]
[BlackElo "2272"]

1. e4 {[%emt 00:12:44]} d6 {[%emt 00:00:01]} 2. d4 {[%emt 00:00:01]} Nf6 3. Nc3
{[%emt 00:00:02]} e5 4. Nf3 {[%emt 00:00:02]} Nbd7 {[%emt 00:00:01]} 5. Bc4
{[%emt 00:00:02]} Be7 6. O-O {[%emt 00:00:03]} O-O {[%emt 00:00:01]} 7. Re1
{[%emt 00:00:04]} c6 8. a4 {[%emt 00:00:03]} b6 9. d5 {[%emt 00:00:05]} cxd5
{[%emt 00:00:03]} 10. Nxd5 {[%emt 00:00:10]} Nxd5 11. Bxd5 {[%emt 00:00:04]}
Rb8 12. b3 {[%emt 00:00:11]} a6 {[%emt 00:00:11]} 13. h3 {[%emt 00:00:09]} Nf6
{[%emt 00:00:14]} 14. c4 {[%emt 00:00:13]} Nxd5 {[%emt 00:00:03]} 15. Qxd5
{[%emt 00:00:25]} b5 {[%emt 00:00:15]} 16. axb5 {[%emt 00:00:06]} axb5 {[%emt
00:00:02]} 17. Ra7 {[%emt 00:00:22]} Be6 {[%emt 00:00:19]} 18. Qd3 {[%emt
00:00:39]} bxc4 {[%emt 00:00:03]} 19. bxc4 Rc8 {[%emt 00:00:03]} 20. Nd2 {[%emt
00:00:06]} Rc7 {[%emt 00:00:06]} 21. Rxc7 {[%emt 00:00:23]} Qxc7 {[%emt
00:00:02]} 22. Ba3 {[%emt 00:00:05]} h6 {[%emt 00:00:13]} 23. Rc1 {[%emt
00:00:09]} Rd8 {[%emt 00:00:04]} 24. Rc2 {[%emt 00:00:04]} Ra8 {[%emt
00:00:13]} 25. Nf1 {[%emt 00:00:04]} Ra6 {[%emt 00:00:45]} 26. Ne3 {[%emt
00:00:15]} Qa7 {[%emt 00:00:04]} 27. Bb4 {[%emt 00:00:04]} Qb6 {[%emt
00:00:09]} 28. Bc3 {[%emt 00:00:04]} Ra3 {[%emt 00:00:05]} 29. Qd2 {[%emt
00:00:02]} Qb1+ {[%emt 00:00:05]} 30. Kh2 Bg5 {[%emt 00:00:05]} 31. g3 {[%emt
00:00:02]} Bxe3 {[%emt 00:00:06]} 32. fxe3 Bxc4 {[%emt 00:00:05]} 33. Rb2
{[%emt 00:00:02]} Qf1 {[%emt 00:00:04]} 34. Bb4 {[%emt 00:00:05]} Ra1 {[%emt
00:00:01]} 35. Qg2 {[%emt 00:00:02]} Qc1 {[%emt 00:00:04]} 36. Bxd6 {[%emt
00:00:03]} Bf1 {[%emt 00:00:04]} 37. Qf2 {[%emt 00:00:02]} Bd3 {[%emt
00:00:03]} 38. Rb8+ {[%emt 00:00:03]} Kh7 {[%emt 00:00:01]} 39. Qf5+ {[%emt
00:00:01]} 1-0

[Event "MČR v bleskovém šachu družstev 2019"]
[Site "Teplice, Czech Republic"]
[Date "2019.09.14"]
[Round "9.16"]
[White "Duran, Tomas"]
[Black "Routner, Jakub"]
[Result "0-1"]
[TimeControl "3 mim. + 2 s"]
[BlackFideId "322245"]
[WhiteElo "2135"]
[BlackElo "2138"]

1. e4 {[%clk 00:03:02]} {[%emt 00:00:02]} c5 {[%clk 00:03:03]} 2. Nf3 {[%clk
00:03:01]} {[%emt 00:00:03]} e6 {[%clk 00:03:04]} 3. c3 {[%clk 00:03:01]}
{[%emt 00:00:03]} d5 {[%clk 00:02:59]} {[%emt 00:00:07]} 4. e5 {[%clk
00:02:58]} {[%emt 00:00:05]} Nc6 {[%clk 00:02:52]} {[%emt 00:00:09]} 5. d4
{[%clk 00:02:59]} {[%emt 00:00:02]} cxd4 {[%clk 00:02:50]} {[%emt 00:00:04]} 6.
cxd4 {[%clk 00:03:00]} Nge7 {[%clk 00:02:49]} {[%emt 00:00:03]} 7. Bd3 {[%clk
00:02:59]} {[%emt 00:00:03]} Qb6 {[%clk 00:02:43]} {[%emt 00:00:08]} 8. O-O
{[%clk 00:02:58]} {[%emt 00:00:04]} Bd7 {[%clk 00:02:42]} {[%emt 00:00:03]} 9.
Nc3 {[%clk 00:02:57]} {[%emt 00:00:03]} Nxd4 {[%clk 00:02:34]} {[%emt
00:00:10]} 10. Nxd4 {[%clk 00:02:48]} {[%emt 00:00:11]} Qxd4 {[%clk 00:02:35]}
{[%emt 00:00:02]} 11. Nb5 {[%clk 00:02:37]} {[%emt 00:00:12]} Qxe5 {[%clk
00:02:28]} {[%emt 00:00:09]} 12. Re1 {[%clk 00:02:31]} {[%emt 00:00:09]} Qb8
{[%clk 00:02:24]} {[%emt 00:00:05]} 13. Qf3 {[%clk 00:02:30]} {[%emt 00:00:04]}
Bxb5 {[%clk 00:01:54]} {[%emt 00:00:31]} 14. Bxb5+ {[%clk 00:02:30]} {[%emt
00:00:02]} Nc6 {[%clk 00:01:56]} 15. Qxd5 {[%clk 00:02:26]} {[%emt 00:00:07]}
Qd6 {[%clk 00:01:56]} {[%emt 00:00:01]} 16. Qe4 {[%clk 00:02:07]} {[%emt
00:00:22]} Rc8 {[%clk 00:01:47]} {[%emt 00:00:10]} 17. Bf4 {[%clk 00:02:06]}
{[%emt 00:00:04]} Qb4 {[%clk 00:01:48]} 18. Rac1 {[%clk 00:01:06]} {[%emt
00:01:03]} Qxb5 {[%clk 00:01:39]} {[%emt 00:00:11]} 19. b3 {[%clk 00:00:48]}
{[%emt 00:00:20]} Be7 {[%clk 00:01:39]} {[%emt 00:00:03]} 20. Rc3 {[%clk
00:00:41]} {[%emt 00:00:09]} O-O {[%clk 00:01:34]} {[%emt 00:00:06]} 21. Rh3
{[%clk 00:00:41]} {[%emt 00:00:02]} Qf5 {[%clk 00:01:28]} {[%emt 00:00:07]} 22.
Qa4 {[%clk 00:00:18]} {[%emt 00:00:25]} Bb4 {[%clk 00:01:20]} {[%emt 00:00:10]}
23. Rf1 {[%clk 00:00:19]} {[%emt 00:00:02]} Qxf4 {[%clk 00:01:18]} {[%emt
00:00:04]} 24. Rf3 {[%clk 00:00:15]} {[%emt 00:00:06]} Qd2 {[%clk 00:01:11]}
{[%emt 00:00:08]} 25. a3 {[%clk 00:00:16]} {[%emt 00:00:03]} Be7 {[%clk
00:01:05]} {[%emt 00:00:08]} 26. Qg4 {[%clk 00:00:14]} {[%emt 00:00:04]} Rfd8
{[%clk 00:01:00]} {[%emt 00:00:06]} 27. Qh5 {[%clk 00:00:12]} {[%emt 00:00:04]}
Bf6 {[%clk 00:00:49]} {[%emt 00:00:12]} 28. Rh3 {[%emt 00:00:03]} Qc2 {[%clk
00:00:43]} {[%emt 00:00:06]} 29. g3 {[%clk 00:00:11]} {[%emt 00:00:05]} Nd4
{[%clk 00:00:35]} {[%emt 00:00:09]} 30. Re1 {[%clk 00:00:09]} {[%emt 00:00:04]}
Qd3 {[%clk 00:00:29]} {[%emt 00:00:08]} 31. Kg2 {[%clk 00:00:08]} {[%emt
00:00:04]} Rc3 {[%clk 00:00:26]} {[%emt 00:00:04]} 32. Re3 {[%clk 00:00:06]}
{[%emt 00:00:04]} Qg6 {[%clk 00:00:13]} {[%emt 00:00:16]} 33. Rxc3 {[%clk
00:00:06]} {[%emt 00:00:02]} Qxh5 {[%clk 00:00:11]} {[%emt 00:00:04]} 34. Rxh5
{[%clk 00:00:08]} g6 {[%clk 00:00:09]} {[%emt 00:00:04]} 35. Rhc5 {[%clk
00:00:08]} {[%emt 00:00:02]} Kg7 {[%clk 00:00:09]} {[%emt 00:00:02]} 36. Rc7
{[%clk 00:00:08]} {[%emt 00:00:02]} Rb8 {[%clk 00:00:08]} {[%emt 00:00:03]} 37.
R3c4 {[%clk 00:00:08]} {[%emt 00:00:02]} Nc6 {[%clk 00:00:08]} {[%emt
00:00:01]} 38. b4 {[%clk 00:00:09]} {[%emt 00:00:02]} Be5 {[%clk 00:00:09]}
{[%emt 00:00:02]} 39. Rd7 {[%clk 00:00:10]} {[%emt 00:00:01]} Bb2 {[%clk
00:00:08]} {[%emt 00:00:02]} 40. Rc2 {[%clk 00:00:10]} {[%emt 00:00:01]} Bxa3
{[%clk 00:00:08]} {[%emt 00:00:02]} 41. b5 {[%clk 00:00:11]} Ne5 {[%clk
00:00:09]} 42. Rcc7 {[%clk 00:00:12]} {[%emt 00:00:01]} Nxd7 {[%clk 00:00:10]}
{[%emt 00:00:02]} 43. Rxd7 {[%clk 00:00:13]} a6 {[%clk 00:00:10]} {[%emt
00:00:02]} 44. b6 {[%clk 00:00:12]} {[%emt 00:00:03]} Bc5 {[%clk 00:00:11]} 45.
f4 {[%clk 00:00:12]} {[%emt 00:00:03]} Bxb6 {[%clk 00:00:12]} 46. Kf3 {[%clk
00:00:13]} Bc5 {[%clk 00:00:10]} {[%emt 00:00:04]} 47. Ke4 {[%clk 00:00:14]}
{[%emt 00:00:01]} b5 {[%clk 00:00:11]} {[%emt 00:00:02]} 48. Kd3 {[%clk
00:00:16]} a5 {[%clk 00:00:11]} {[%emt 00:00:01]} 49. Kc3 {[%clk 00:00:17]} a4
{[%clk 00:00:11]} {[%emt 00:00:02]} 50. Rc7 {[%clk 00:00:18]} b4+ {[%clk
00:00:12]} {[%emt 00:00:02]} 51. Kb2 {[%clk 00:00:19]} {[%emt 00:00:02]} Bf8
{[%clk 00:00:12]} {[%emt 00:00:02]} 52. Rc4 {[%clk 00:00:20]} Ra8 {[%clk
00:00:12]} {[%emt 00:00:03]} 53. Ka2 {[%clk 00:00:21]} b3+ {[%clk 00:00:12]}
{[%emt 00:00:02]} 54. Ka1 {[%clk 00:00:22]} a3 {[%clk 00:00:13]} {[%emt
00:00:01]} 55. Rc3 {[%clk 00:00:23]} {[%emt 00:00:01]} Rb8 {[%clk 00:00:14]} 56.
Kb1 {[%clk 00:00:25]} a2+ {[%clk 00:00:14]} {[%emt 00:00:02]} 57. Kb2 {[%clk
00:00:26]} Be7 {[%clk 00:00:14]} {[%emt 00:00:01]} 58. Rc7 {[%clk 00:00:26]}
{[%emt 00:00:03]} Bf6+ {[%emt 00:00:04]} 0-1

[Event "MČR v bleskovém šachu družstev 2019"]
[Site "Teplice, Czech Republic"]
[Date "2019.09.14"]
[Round "9.18"]
[White "Lorenc, Tomas"]
[Black "Sorm, Daniel"]
[Result "0-1"]
[TimeControl "3 mim. + 2 s"]
[BlackTitle "FM"]
[WhiteFideId "313203"]
[BlackFideId "5400139"]
[WhiteElo "2094"]
[BlackElo "2310"]

1. c4 {[%clk 00:03:02]} {[%emt 00:00:02]} e6 {[%clk 00:03:03]} {[%emt
00:00:02]} 2. g3 {[%clk 00:03:03]} {[%emt 00:00:01]} d5 {[%clk 00:03:02]}
{[%emt 00:00:03]} 3. Bg2 {[%clk 00:03:03]} {[%emt 00:00:01]} d4 {[%clk
00:02:56]} {[%emt 00:00:08]} 4. d3 {[%clk 00:03:03]} {[%emt 00:00:03]} c5
{[%clk 00:02:56]} {[%emt 00:00:02]} 5. Nf3 {[%clk 00:03:02]} {[%emt 00:00:02]}
Nc6 {[%clk 00:02:56]} {[%emt 00:00:03]} 6. O-O {[%clk 00:03:01]} {[%emt
00:00:03]} Nf6 {[%clk 00:02:57]} {[%emt 00:00:01]} 7. Nbd2 {[%clk 00:02:57]}
{[%emt 00:00:06]} Bd6 {[%clk 00:02:56]} {[%emt 00:00:03]} 8. a3 {[%clk
00:02:56]} {[%emt 00:00:03]} a5 {[%clk 00:02:55]} {[%emt 00:00:03]} 9. Rb1
{[%clk 00:02:46]} {[%emt 00:00:12]} O-O {[%clk 00:02:54]} {[%emt 00:00:03]} 10.
Ng5 {[%clk 00:02:28]} {[%emt 00:00:19]} e5 {[%clk 00:02:43]} {[%emt 00:00:14]}
11. Nge4 {[%clk 00:02:25]} {[%emt 00:00:05]} Nxe4 {[%clk 00:02:42]} {[%emt
00:00:03]} 12. Nxe4 {[%clk 00:02:23]} {[%emt 00:00:03]} Be7 {[%clk 00:02:36]}
{[%emt 00:00:09]} 13. h4 {[%clk 00:02:10]} {[%emt 00:00:15]} h6 {[%clk
00:02:22]} {[%emt 00:00:16]} 14. Nd2 {[%clk 00:01:50]} {[%emt 00:00:21]} Bg4
{[%clk 00:02:05]} {[%emt 00:00:19]} 15. Kh2 {[%clk 00:01:47]} {[%emt 00:00:05]}
f5 {[%clk 00:01:59]} {[%emt 00:00:08]} 16. Bd5+ {[%clk 00:01:37]} {[%emt
00:00:12]} Kh8 {[%clk 00:01:59]} {[%emt 00:00:02]} 17. Nf3 {[%clk 00:01:28]}
{[%emt 00:00:11]} e4 {[%clk 00:01:47]} {[%emt 00:00:15]} 18. Bxc6 {[%clk
00:01:17]} {[%emt 00:00:13]} bxc6 {[%clk 00:01:35]} {[%emt 00:00:14]} 19. Ne5
{[%clk 00:01:18]} {[%emt 00:00:01]} Bd6 {[%clk 00:01:11]} {[%emt 00:00:26]} 20.
Bf4 {[%clk 00:01:09]} {[%emt 00:00:10]} Bxe5 {[%clk 00:00:44]} {[%emt
00:00:29]} 21. Bxe5 {[%clk 00:01:10]} {[%emt 00:00:02]} Qe7 {[%clk 00:00:44]}
{[%emt 00:00:02]} 22. Bf4 {[%clk 00:01:08]} {[%emt 00:00:03]} g5 {[%clk
00:00:45]} {[%emt 00:00:02]} 23. hxg5 {[%clk 00:01:04]} {[%emt 00:00:06]} hxg5
{[%clk 00:00:46]} 24. Bd2 {[%clk 00:00:53]} {[%emt 00:00:12]} Qh7+ {[%clk
00:00:36]} {[%emt 00:00:12]} 25. Kg1 {[%clk 00:00:54]} f4 {[%clk 00:00:35]}
{[%emt 00:00:05]} 26. f3 {[%clk 00:00:51]} {[%emt 00:00:05]} fxg3 {[%clk
00:00:24]} {[%emt 00:00:13]} 0-1

[Event "MČR v bleskovém šachu družstev 2019"]
[Site "Teplice, Czech Republic"]
[Date "2019.09.14"]
[Round "9.19"]
[White "Strasil, Pavel"]
[Black "Srba, Stanislav"]
[Result "1-0"]
[TimeControl "3 mim. + 2 s"]
[WhiteFideId "308013"]
[BlackFideId "364720"]
[WhiteElo "2026"]
[BlackElo "1883"]

1. d4 {[%clk 00:03:01]} {[%emt 00:00:02]} f5 {[%clk 00:03:03]} {[%emt
00:00:01]} 2. g3 {[%clk 00:02:59]} {[%emt 00:00:05]} Nf6 {[%clk 00:03:04]}
{[%emt 00:00:01]} 3. Bg2 {[%clk 00:03:00]} g6 {[%clk 00:03:04]} {[%emt
00:00:02]} 4. Nc3 {[%clk 00:02:59]} {[%emt 00:00:03]} Bg7 {[%clk 00:03:05]}
{[%emt 00:00:01]} 5. e4 {[%clk 00:03:00]} d6 {[%clk 00:03:00]} {[%emt
00:00:08]} 6. Nge2 {[%clk 00:02:58]} {[%emt 00:00:04]} O-O {[%clk 00:02:57]}
{[%emt 00:00:04]} 7. e5 {[%clk 00:02:53]} {[%emt 00:00:09]} dxe5 {[%clk
00:02:45]} {[%emt 00:00:14]} 8. dxe5 {[%clk 00:02:53]} {[%emt 00:00:01]} Qxd1+
{[%clk 00:02:45]} {[%emt 00:00:01]} 9. Nxd1 {[%clk 00:02:50]} {[%emt 00:00:06]}
Ng4 {[%clk 00:02:46]} 10. f4 {[%clk 00:02:46]} {[%emt 00:00:06]} Rd8 {[%clk
00:02:33]} {[%emt 00:00:15]} 11. Ne3 {[%clk 00:02:45]} {[%emt 00:00:03]} Nxe3
{[%clk 00:02:26]} {[%emt 00:00:09]} 12. Bxe3 {[%clk 00:02:46]} {[%emt
00:00:01]} Na6 {[%clk 00:02:15]} {[%emt 00:00:13]} 13. c3 {[%clk 00:02:45]}
{[%emt 00:00:03]} c6 {[%clk 00:02:12]} {[%emt 00:00:04]} 14. Kf2 {[%clk
00:02:43]} {[%emt 00:00:04]} Be6 {[%clk 00:02:13]} {[%emt 00:00:02]} 15. Nd4
{[%clk 00:02:36]} {[%emt 00:00:09]} Bd5 {[%clk 00:01:23]} {[%emt 00:00:51]} 16.
Bxd5+ Rxd5 {[%clk 00:01:24]} 17. Nb3 {[%clk 00:02:09]} {[%emt 00:00:11]} Rad8
{[%clk 00:01:04]} {[%emt 00:00:22]} 18. Ke2 {[%clk 00:02:10]} {[%emt 00:00:01]}
g5 {[%clk 00:00:42]} {[%emt 00:00:24]} 19. Rhd1 {[%clk 00:02:10]} {[%emt
00:00:02]} Nc7 {[%clk 00:00:36]} {[%emt 00:00:08]} 20. c4 {[%clk 00:02:09]}
{[%emt 00:00:03]} Rxd1 {[%clk 00:00:20]} {[%emt 00:00:17]} 21. Rxd1 {[%clk
00:02:10]} {[%emt 00:00:01]} Rxd1 {[%clk 00:00:21]} 22. Kxd1 {[%clk 00:02:12]}
a6 {[%clk 00:00:17]} {[%emt 00:00:06]} 23. Na5 {[%clk 00:02:01]} {[%emt
00:00:12]} b5 {[%clk 00:00:14]} {[%emt 00:00:05]} 24. Nxc6 {[%clk 00:02:02]}
{[%emt 00:00:02]} Kf7 {[%clk 00:00:11]} {[%emt 00:00:05]} 25. cxb5 {[%clk
00:01:52]} {[%emt 00:00:12]} axb5 {[%clk 00:00:06]} {[%emt 00:00:07]} 26. Nb4
{[%clk 00:01:42]} {[%emt 00:00:11]} Ke6 {[%clk 00:00:06]} {[%emt 00:00:02]} 27.
Kd2 {[%clk 00:01:39]} {[%emt 00:00:06]} gxf4 {[%clk 00:00:06]} {[%emt
00:00:02]} 28. gxf4 {[%clk 00:01:39]} {[%emt 00:00:01]} Bh6 {[%clk 00:00:07]}
{[%emt 00:00:01]} 29. Nc6 {[%clk 00:01:35]} {[%emt 00:00:07]} Kd5 {[%clk
00:00:03]} {[%emt 00:00:06]} 30. Nxe7+ {[%clk 00:01:35]} {[%emt 00:00:02]} Ke4
{[%clk 00:00:04]} 31. Ng8 {[%clk 00:00:49]} {[%emt 00:00:48]} Bxf4 {[%clk
00:00:04]} {[%emt 00:00:02]} 32. Bxf4 {[%clk 00:00:50]} Kxf4 {[%clk 00:00:05]}
{[%emt 00:00:01]} 33. Nf6 {[%clk 00:00:48]} {[%emt 00:00:04]} Kxe5 34. Nxh7
{[%clk 00:00:49]} Nd5 {[%clk 00:00:06]} {[%emt 00:00:01]} 35. b3 {[%clk
00:00:47]} {[%emt 00:00:04]} f4 {[%clk 00:00:06]} {[%emt 00:00:02]} 36. Ke1
{[%clk 00:00:45]} {[%emt 00:00:04]} Ke4 {[%clk 00:00:07]} {[%emt 00:00:01]} 37.
Ng5+ {[%clk 00:00:44]} {[%emt 00:00:03]} Ke3 {[%clk 00:00:08]} {[%emt
00:00:01]} 38. a4 {[%clk 00:00:46]} Nc3 {[%clk 00:00:05]} {[%emt 00:00:03]} 39.
a5 {[%clk 00:00:46]} {[%emt 00:00:03]} Nd5 {[%clk 00:00:05]} {[%emt 00:00:02]}
40. a6 {[%clk 00:00:43]} {[%emt 00:00:05]} f3 {[%clk 00:00:06]} {[%emt
00:00:01]} 41. Nxf3 {[%clk 00:00:42]} {[%emt 00:00:03]} Kxf3 {[%clk 00:00:07]}
{[%emt 00:00:01]} 42. a7 {[%clk 00:00:43]} Nc7 {[%clk 00:00:08]} 43. Kd2 {[%clk
00:00:44]} {[%emt 00:00:01]} Kg4 {[%clk 00:00:08]} {[%emt 00:00:02]} 44. Kc3
{[%clk 00:00:43]} {[%emt 00:00:02]} Kh3 {[%clk 00:00:09]} {[%emt 00:00:01]} 45.
Kb4 {[%clk 00:00:44]} {[%emt 00:00:02]} Kxh2 {[%clk 00:00:10]} 46. Ka5 {[%clk
00:00:45]} Kg3 {[%clk 00:00:10]} {[%emt 00:00:02]} 47. Kb6 {[%clk 00:00:47]}
{[%emt 00:00:01]} Nd5+ {[%clk 00:00:08]} {[%emt 00:00:04]} 48. Kc6 {[%clk
00:00:44]} {[%emt 00:00:05]} 1-0

[Event "MČR v bleskovém šachu družstev 2019"]
[Site "Teplice, Czech Republic"]
[Date "2019.09.14"]
[Round "9.21"]
[White "Bach, Markus"]
[Black "Bujak, Michal"]
[Result "1-0"]
[TimeControl "3 mim. + 2 s"]
[WhiteFideId "24603376"]
[BlackFideId "316318"]
[WhiteElo "2259"]
[BlackElo "2120"]

1. d4 {[%clk 00:03:00]} {[%emt 00:00:03]} Nf6 {[%clk 00:03:03]} {[%emt
00:00:02]} 2. Nf3 {[%clk 00:03:00]} {[%emt 00:00:02]} c5 {[%clk 00:03:04]} 3.
g3 {[%clk 00:03:00]} {[%emt 00:00:03]} cxd4 {[%clk 00:03:02]} {[%emt 00:00:05]}
4. Nxd4 {[%clk 00:03:00]} {[%emt 00:00:01]} e5 {[%clk 00:03:02]} {[%emt
00:00:02]} 5. Nf3 {[%clk 00:03:01]} {[%emt 00:00:01]} Nc6 {[%clk 00:03:01]}
{[%emt 00:00:04]} 6. c4 {[%clk 00:03:02]} d5 {[%clk 00:02:35]} {[%emt
00:00:27]} 7. cxd5 {[%clk 00:03:00]} {[%emt 00:00:04]} Qxd5 {[%clk 00:02:32]}
{[%emt 00:00:05]} 8. Qxd5 {[%clk 00:02:31]} {[%emt 00:00:31]} Nxd5 {[%clk
00:02:33]} {[%emt 00:00:02]} 9. Bg2 {[%clk 00:02:32]} Ndb4 {[%clk 00:02:02]}
{[%emt 00:00:33]} 10. Na3 {[%clk 00:02:33]} {[%emt 00:00:02]} e4 {[%clk
00:01:56]} {[%emt 00:00:07]} 11. Ng5 {[%clk 00:02:26]} {[%emt 00:00:09]} f5
{[%clk 00:01:57]} {[%emt 00:00:02]} 12. O-O {[%clk 00:02:17]} {[%emt 00:00:10]}
Nd4 {[%clk 00:00:55]} {[%emt 00:01:05]} 13. e3 {[%clk 00:01:53]} {[%emt
00:00:26]} Ne2+ {[%clk 00:00:26]} {[%emt 00:00:30]} 14. Kh1 {[%clk 00:01:54]}
{[%emt 00:00:01]} Nxc1 {[%clk 00:00:24]} {[%emt 00:00:05]} 15. Raxc1 {[%clk
00:01:53]} {[%emt 00:00:03]} Nd3 {[%clk 00:00:25]} 16. Rc7 {[%clk 00:01:51]}
{[%emt 00:00:02]} h6 {[%clk 00:00:15]} {[%emt 00:00:13]} 17. Nf7 {[%clk
00:01:52]} {[%emt 00:00:02]} Rg8 {[%clk 00:00:16]} 18. Nc4 {[%clk 00:01:45]}
{[%emt 00:00:09]} Be6 {[%clk 00:00:08]} {[%emt 00:00:10]} 19. Ncd6+ {[%clk
00:01:35]} {[%emt 00:00:11]} Bxd6 {[%clk 00:00:08]} {[%emt 00:00:02]} 20. Nxd6+
{[%clk 00:01:36]} {[%emt 00:00:02]} Kd8 {[%clk 00:00:08]} {[%emt 00:00:02]} 21.
Rxb7 {[%clk 00:01:36]} {[%emt 00:00:02]} Bd5 {[%clk 00:00:07]} {[%emt
00:00:02]} 22. Rb5 {[%clk 00:01:32]} {[%emt 00:00:07]} Bc6 {[%clk 00:00:07]}
{[%emt 00:00:02]} 23. Rxf5 {[%clk 00:01:33]} {[%emt 00:00:02]} Kd7 {[%clk
00:00:03]} {[%emt 00:00:06]} 24. Nxe4 {[%clk 00:01:31]} {[%emt 00:00:03]} Rgf8
{[%clk 00:00:03]} {[%emt 00:00:03]} 25. Rxf8 {[%clk 00:01:20]} {[%emt
00:00:13]} Rxf8 {[%clk 00:00:04]} {[%emt 00:00:01]} 26. Rd1 {[%clk 00:01:21]}
1-0

[Event "MČR v bleskovém šachu družstev 2019"]
[Site "Teplice, Czech Republic"]
[Date "2019.09.14"]
[Round "9.22"]
[White "Sott, Pavel"]
[Black "Buchcar, Tomas"]
[Result "0-1"]
[TimeControl "3 mim. + 2 s"]
[WhiteFideId "311910"]
[BlackFideId "328421"]
[WhiteElo "2167"]
[BlackElo "2145"]

1. e4 {[%clk 00:03:02]} {[%emt 00:00:01]} c6 {[%clk 00:03:03]} {[%emt
00:00:02]} 2. Nc3 {[%clk 00:03:03]} {[%emt 00:00:01]} d5 {[%clk 00:03:04]} 3.
Nf3 {[%clk 00:03:04]} dxe4 {[%clk 00:03:00]} {[%emt 00:00:07]} 4. Nxe4 {[%clk
00:03:05]} Nd7 {[%clk 00:02:59]} {[%emt 00:00:02]} 5. Bc4 {[%clk 00:03:06]}
{[%emt 00:00:02]} Ndf6 {[%clk 00:02:52]} {[%emt 00:00:09]} 6. Nxf6+ {[%clk
00:02:54]} {[%emt 00:00:14]} Nxf6 {[%clk 00:02:51]} {[%emt 00:00:03]} 7. O-O
{[%clk 00:02:54]} {[%emt 00:00:03]} e6 {[%clk 00:02:46]} {[%emt 00:00:07]} 8.
d4 {[%clk 00:02:52]} {[%emt 00:00:04]} Be7 {[%clk 00:02:40]} {[%emt 00:00:07]}
9. c3 {[%clk 00:02:52]} {[%emt 00:00:02]} O-O {[%clk 00:02:39]} {[%emt
00:00:03]} 10. Re1 {[%clk 00:02:53]} a6 {[%clk 00:02:37]} {[%emt 00:00:04]} 11.
Ne5 {[%clk 00:02:51]} {[%emt 00:00:04]} c5 {[%clk 00:02:21]} {[%emt 00:00:17]}
12. dxc5 {[%clk 00:02:45]} {[%emt 00:00:08]} Bxc5 {[%clk 00:02:18]} {[%emt
00:00:06]} 13. Qxd8 {[%clk 00:02:41]} {[%emt 00:00:06]} Rxd8 {[%clk 00:02:18]}
{[%emt 00:00:02]} 14. Bg5 {[%clk 00:02:35]} {[%emt 00:00:08]} b5 {[%clk
00:02:12]} {[%emt 00:00:08]} 15. Bb3 {[%clk 00:02:34]} {[%emt 00:00:03]} Bb7
{[%clk 00:02:07]} {[%emt 00:00:07]} 16. Rad1 {[%clk 00:02:18]} {[%emt
00:00:18]} Be7 {[%clk 00:02:05]} {[%emt 00:00:05]} 17. Be3 {[%clk 00:02:06]}
{[%emt 00:00:13]} Nd5 {[%clk 00:02:02]} {[%emt 00:00:05]} 18. Bd4 {[%clk
00:01:57]} {[%emt 00:00:11]} Bf6 {[%clk 00:01:58]} {[%emt 00:00:05]} 19. Nf3
{[%clk 00:01:55]} {[%emt 00:00:05]} Bxd4 {[%clk 00:01:44]} {[%emt 00:00:16]} 20.
Rxd4 {[%clk 00:01:55]} {[%emt 00:00:02]} Nf6 {[%clk 00:01:41]} {[%emt
00:00:04]} 21. Red1 {[%clk 00:01:52]} {[%emt 00:00:06]} Rxd4 {[%clk 00:01:39]}
{[%emt 00:00:04]} 22. Nxd4 {[%clk 00:01:53]} {[%emt 00:00:01]} Kf8 {[%clk
00:01:33]} {[%emt 00:00:09]} 23. f3 {[%clk 00:01:52]} {[%emt 00:00:02]} Ke7
{[%clk 00:01:32]} {[%emt 00:00:03]} 24. Kf2 {[%clk 00:01:52]} {[%emt 00:00:02]}
Rd8 {[%clk 00:01:32]} {[%emt 00:00:02]} 25. Ke2 {[%clk 00:01:42]} {[%emt
00:00:13]} g6 {[%clk 00:01:27]} {[%emt 00:00:06]} 26. g3 {[%clk 00:01:37]}
{[%emt 00:00:07]} e5 {[%clk 00:01:27]} {[%emt 00:00:01]} 27. Nc2 {[%clk
00:01:35]} {[%emt 00:00:05]} Bxf3+ {[%clk 00:01:27]} {[%emt 00:00:02]} 28. Kxf3
{[%clk 00:01:35]} Rxd1 {[%clk 00:01:28]} {[%emt 00:00:02]} 29. Nb4 {[%clk
00:01:27]} {[%emt 00:00:10]} Rd6 {[%clk 00:01:24]} {[%emt 00:00:06]} 30. g4
{[%clk 00:01:27]} {[%emt 00:00:02]} a5 {[%clk 00:01:21]} {[%emt 00:00:05]} 31.
g5 {[%clk 00:01:21]} {[%emt 00:00:08]} axb4 {[%clk 00:01:20]} {[%emt 00:00:02]}
32. gxf6+ {[%clk 00:01:20]} {[%emt 00:00:03]} Kxf6 {[%clk 00:01:21]} {[%emt
00:00:02]} 33. cxb4 {[%clk 00:01:20]} {[%emt 00:00:02]} Rd3+ {[%clk 00:01:22]}
34. Ke4 {[%clk 00:01:21]} {[%emt 00:00:01]} Rxb3 {[%clk 00:01:22]} {[%emt
00:00:02]} 35. axb3 {[%clk 00:01:22]} {[%emt 00:00:01]} Ke6 {[%clk 00:01:23]}
{[%emt 00:00:01]} 0-1